Cogmind - Beta 15 @@@ ROGUE MODE // 2025.09.14 @ 10:40:20 Player: Beter Result: Destroyed by Y-54 Guardian via exploding Fusion Modulator Performance ------------- Evolutions (4) 2000 Regions Visited (4) 800 Robots Destroyed (24) 120 Value Destroyed (737) 737 Prototype IDs (0) 0 Alien Tech Used (0) 0 Bonus (0) 0 TOTAL SCORE: 3657 Bonus ------- None Cogmind --------- Core Integrity 0/850 Matter 301/550 Energy 100/100 System Corruption 10% Temperature Cool (12) Movement Hovering (60) Location -6/Factory Parts ------- > --- POWER (4) -------- (None) > --- PROPULSION (4) --- Gravmag System > --- UTILITY (3) ------ Matter Compressor Target Analyzer > --- WEAPON (4) ------- Flak Gun > --- INVENTORY (5) ---- Ion Engine Medium Battery (150) Particle Charger Particle Gun CPS Tube (2) Peak State ------------ > --- POWER ------------ Fission Core Fission Core Fission Core > --- PROPULSION ------- Improved Medium Treads Armored Huge Wheel > --- UTILITY ---------- Power Amplifier Targeting Computer > --- WEAPON ----------- Heavy Laser Particle Cannon > --- INVENTORY -------- Ion Engine Medium Battery Particle Charger Particle Gun CPS Tube [Rating: 41] Favorites ----------- Power Subdweller Power Source Engine Subdweller Power Source Power Core Fission Core Propulsion Subdweller Monowheel Treads Improved Medium Treads Leg Aluminum Leg Wheel Subdweller Monowheel Hover Unit Hover Unit Utility Heat Sink Device Heat Sink Storage Medium Matter Pod Processor Improved Targeting Computer Protection Reflective Plating Weapon Subdweller Machine Gun Energy Gun Particle Gun Energy Cannon Particle Cannon Ballistic Gun Subdweller Machine Gun Launcher Shock Bomb Launcher Special Weapon Flamer Build | -11 -10 -10 -9 -6 ------- Run | Yrd Mat Sub Scr Fac Slots Evolved 8 | . . . . 8 Power 3 | . . . . 3 Propulsion 2 | . . . . 2 Utility 1 | . . . . 1 Weapon 2 | . . . . 2 Parts Attached 60 | 9 12 16 11 12 Power 13 | 2 2 4 1 4 Engine 9 | 2 2 4 1 . Core 4 | . . . . 4 Reactor . | . . . . . Propulsion 13 | 3 5 2 1 2 Treads 1 | . . . . 1 Leg 4 | . 4 . . . Wheel 6 | 3 . 2 1 . Hover 2 | . 1 . . 1 Flight . | . . . . . Utility 18 | 2 2 4 6 4 Device 10 | 1 1 3 3 2 Storage 2 | 1 . . . 1 Processor 3 | . . . 2 1 Hackware . | . . . . . Protection 3 | . 1 1 1 . Artifact . | . . . . . Weapon 16 | 2 3 6 3 2 Energy Gun 6 | 1 2 1 1 1 Energy Cannon 1 | . . . 1 . Ballistic Gun 5 | 1 . 3 . 1 Ballistic Cannon . | . . . . . Launcher 2 | . 1 . 1 . Special Weapon 2 | . . 2 . . Impact Weapon . | . . . . . Slashing Weapon . | . . . . . Piercing Weapon . | . . . . . Special Melee Weapon . | . . . . . Unidentified Prototypes . | . . . . . Parts Lost 24 | . 1 9 . 14 Power 7 | . 1 1 . 5 Propulsion 6 | . . 4 . 2 Utility 5 | . . 1 . 4 Weapon 6 | . . 3 . 3 Highest Loss Streak 5 | . 1 3 . 5 To Critical Strikes . | . . . . . Average Backups 3 | 3 4 2 3 5 Power . | . 1 . 1 1 Propulsion . | 1 1 . . . Utility . | . 1 . . 2 Weapon . | . 1 . 1 1 Tool/Special . | . . . . . Unused Backups 3 | 1 . . . 2 Power . | . . . . . Propulsion . | . . . . . Utility 1 | . . . . 1 Weapon 1 | 1 . . . . Tool/Special 1 | . . . . 1 Average Slot Usage (%) 84 | . 96 88 92 32 Engine 12 | . 12 13 14 1 Leg 4 | . 20 8 . . Wheel 15 | . 6 14 20 2 Device 15 | . 17 19 14 3 Processor 4 | . . . 8 5 Protection 3 | . 2 2 5 . Energy Gun 7 | . 19 8 4 3 Energy Cannon 3 | . . . 7 1 Ballistic Gun 12 | . 6 15 13 1 Launcher 1 | . 2 . 2 . Peak Build Rating 41 | 7 10 13 24 41 Average Rating 14 | 4 8 11 17 20 On Entrance 10 | . 7 10 13 22 Naked Turns 27 | . . . . 27 Heaviest Build 39 | 11 13 28 23 39 Greatest Support 40 | 20 20 40 28 30 Greatest Overweight (x) 5 | . 3 5 5 5 Average Overweight (x) 1 | . . 1 1 . Largest Inventory Capacity 5 | 5 5 5 5 5 Average Capacity 5 | 5 5 5 5 5 Most Carried 5 | 5 5 5 5 5 Average Carried 3 | 3 4 3 3 5 Final Capacity 5 | 5 5 5 5 5 Final Carried 5 | 5 5 2 5 5 Class Distribution -------------------- 57% | Mutant 39% | Scavenger-Mutant 3% | Generator-Mutant Dominant Class ---------------- Mutant | -10/Materials Scavenger-Mutant | -10/Subcaves Mutant | -9/Scraptown Mutant | -6/Factory Resources | -11 -10 -10 -9 -6 ----------- Run | Yrd Mat Sub Scr Fac Matter Collected 1017 | 405 129 222 150 111 Remotely . | . . . . . Salvage Created 789 | 103 156 373 . 157 Parts 69 | 13 14 29 . 13 Haulers Intercepted . | . . . . . Recyclers Shooed 1 | . 1 . . . Parts Field Recycled . | . . . . . Retrieved Matter . | . . . . . Parts Self-Destructed 29 | . . 29 . . Prevented . | . . . . . Kills | -11 -10 -10 -9 -6 ------- Run | Yrd Mat Sub Scr Fac Combat Hostiles Destroyed 18 | 1 6 9 . 2 Melee 2 | . . . . 2 Guns 15 | 1 5 9 . . AOE 1 | . 1 . . . Classes Destroyed 10 | 3 2 3 . 2 Worker 1 | 1 . . . . Builder 1 | . 1 . . . Tunneler 3 | 2 1 . . . Watcher 1 | . . . . 1 Swarmer 2 | . 2 . . . Grunt 7 | 1 4 2 . . Sentry 3 | . . 2 . 1 Programmer 1 | . . . . 1 Artisan 1 | . . 1 . . Subdweller 5 | . . 5 . . Best Kill Streak 4 | 2 4 3 . 2 Combat Bots Only 3 | 1 2 3 . 2 Max Kills in Single Turn 1 | 1 1 1 . 1 Gunslinging . | . . . . . Exploded 1 | . 1 . . . Melee 1 | . . . . 1 Uniques/NPCs Destroyed . | . . . . . Combat | -11 -10 -10 -9 -6 -------- Run | Yrd Mat Sub Scr Fac Hostile Shots Fired 431 | 4 50 58 . 319 Missed 160 | . 17 18 . 125 Hits 271 | 4 33 40 . 194 Projectile 271 | 4 33 40 . 194 AOE 6 | . . 5 . 1 Critical Strikes 2 | . . 1 . 1 Damage Taken 3075 | 44 345 851 . 1835 Core 1069 | 10 57 145 . 857 Absorbed by Shields . | . . . . . Core Remaining (%) 55 | 96 . . 15 . Volleys Fired 81 | 6 18 43 . 14 Largest 2 | 2 2 2 . 2 Hottest 137 | 60 130 130 . 137 Shots Fired 127 | 11 34 58 . 24 Gun 118 | 11 29 58 . 20 Cannon 4 | . . . . 4 Launcher 5 | . 5 . . . Special . | . . . . . Kinetic 37 | 6 15 7 . 9 Thermal 80 | 5 14 51 . 10 Explosive 5 | . 5 . . . Electromagnetic 5 | . . . . 5 Robot Hit Streak 8 | 8 8 7 . 7 Robot Miss Streak 12 | 1 2 4 . 12 Penetration Max . | . . . . . Secondary Targets 3 | . 1 1 . 1 Max Gunslinging Chain 1 | . 1 1 . 1 Shots Hit Robots 90 | 9 23 38 . 20 Core Hits 60 | 5 15 16 . 24 Critical Kills 1 | . . 1 . . Critical Parts Destroyed . | . . . . . Critical Strikes 1 | . . 1 . . Destroy 1 | . . 1 . . Melee Attacks . | . . . . . Impact . | . . . . . Slashing . | . . . . . Piercing . | . . . . . Sneak Attacks . | . . . . . Combat Hostiles . | . . . . . Follow-up Attacks . | . . . . . Damage Inflicted 1717 | 104 480 647 . 486 Guns 1234 | 102 212 647 . 273 Cannons 89 | . . . . 89 Explosions 248 | . 248 . . . Melee . | . . . . . Ramming 146 | 2 20 . . 124 Kinetic 299 | 49 94 60 . 96 Thermal 923 | 53 118 587 . 165 Explosive 248 | . 248 . . . Electromagnetic 101 | . . . . 101 Impact . | . . . . . Slashing . | . . . . . Piercing . | . . . . . Highest Corruption 10 | . . . . 10 Average Corruption 7 | . . . . 7 Corruption Purged . | . . . . . Corruption Blocked . | . . . . . Effects 6 | . . . . 6 Matter Fused 2 | . . . . 2 Misfires 2 | . . . . 2 Alerts 1 | . . . . 1 Weapon Failures 1 | . . . . 1 Overload Shots . | . . . . . Overflow Damage . | . . . . . Projectiles . | . . . . . Explosions . | . . . . . Melee . | . . . . . Knockbacks . | . . . . . Impact . | . . . . . Kinetic . | . . . . . Secondary . | . . . . . Self-Inflicted Damage 73 | 1 21 . . 51 Shots 2 | . 2 . . . Rammed 38 | 1 . . . 37 Targets Rammed 42 | 1 4 . . 37 Kicked 4 | . 4 . . . Crushed . | . . . . . Highest Temperature 162 | 6 162 69 . 106 Average Temperature 31 | 6 33 26 . 42 Received Heat Transfer 687 | 24 120 177 . 366 Siege Activations . | . . . . . Martial Activations . | . . . . . Shielding Activations . | . . . . . Robots Disrupted . | . . . . . Combat Hostiles . | . . . . . Robots Corrupted . | . . . . . Combat Hostiles . | . . . . . Parts Fried . | . . . . . Impact Corruptions . | . . . . . Robots Melted . | . . . . . Combat Hostiles . | . . . . . Parts Melted . | . . . . . Heat Transferred 2051 | 125 285 1345 . 296 Parts Sabotaged . | . . . . . Parts Stolen . | . . . . . Parts Stripped . | . . . . . Power Chain Reactions . | . . . . . Alert | -11 -10 -10 -9 -6 ------- Run | Yrd Mat Sub Scr Fac Maximum Alert Level . | . . . . . Low Security (%) 100 | 100 100 . . 100 Level 1 . | . . . . . Level 2 . | . . . . . Level 3 . | . . . . . Level 4 . | . . . . . Level 5 . | . . . . . High Security . | . . . . . Max Security . | . . . . . Peak Influence 107 | 25 107 . . 50 Initial 3 | . 3 . . . Average 20 | 3 58 . . 7 Influence Increases 364 | 35 167 80 . 82 Destroy 0b10 Robot/C 260 | 20 120 80 . 40 Destroy 0b10 Robot/NC 30 | 15 10 . . 5 Destroy Leader 52 | . 30 . . 22 Disable Machine 15 | . . . . 15 Destroy Structure 7 | . 7 . . . Influence Decreases 364 | 30 125 127 . 82 Entered New Map 25 | . 2 23 . . Time Decay 266 | 30 113 72 . 51 Lost Part 73 | . 10 32 . 31 Squads Dispatched 2 | . 1 . . 1 Investigation . | . . . . . Extermination 1 | . . . . 1 Reinforcement 1 | . 1 . . . Assault . | . . . . . Garrison . | . . . . . Intercept . | . . . . . Searches Triggered . | . . . . . Construction Impeded . | . . . . . Haulers Reinforced . | . . . . . Active Scanning Responses . | . . . . . Cargo Convoy Interrupts . | . . . . . Stealth | -11 -10 -10 -9 -6 --------- Run | Yrd Mat Sub Scr Fac Distress Signals . | . . . . . Communications Jammed . | . . . . . Distress Signals . | . . . . . Times Spotted 34 | 1 8 19 . 6 Peak Tracking Total 5 | 1 3 5 . 2 Tactical Retreats . | . . . . . Traps | -11 -10 -10 -9 -6 ------- Run | Yrd Mat Sub Scr Fac Traps Triggered . | . . . . . Indirectly . | . . . . . Trap Hack Attempts . | . . . . . Triggered . | . . . . . Disarmed . | . . . . . Reprogrammed . | . . . . . Reused . | . . . . . Traps Extracted . | . . . . . Installed . | . . . . . Triggered . | . . . . . Machines | -11 -10 -10 -9 -6 ---------- Run | Yrd Mat Sub Scr Fac Machines Disabled 1 | . . . . 1 Max in Single Turn 1 | . . . . 1 Machines Repaired . | . . . . . Machines Dismantled . | . . . . . Machines Sabotaged . | . . . . . Overloaded Fab Kills . | . . . . . Hacking | -11 -10 -10 -9 -6 --------- Run | Yrd Mat Sub Scr Fac Machines Accessed 2 | . 1 . 1 . Terminals 1 | . 1 . . . Fabricators . | . . . . . Repair Stations . | . . . . . Recycling Units . | . . . . . Scanalyzers . | . . . . . Garrison Access . | . . . . . Total Hacks 7 | . 2 . 5 . Successful 7 | . 2 . 5 . Failed . | . . . . . Catastrophic . | . . . . . Database Lockouts . | . . . . . Manual . | . . . . . Terminals 2 | . 2 . . . Fabricators . | . . . . . Repair Stations . | . . . . . Recycling Units . | . . . . . Scanalyzers . | . . . . . Garrison Access . | . . . . . Terminal Hacks 7 | . 2 . 5 . Record 6 | . 1 . 5 . Zone Layout 1 | . 1 . . . Fabricator Hacks . | . . . . . Repair Station Hacks . | . . . . . Recycling Unit Hacks . | . . . . . Scanalyzer . | . . . . . Garrison Access Hacks . | . . . . . Unauthorized Hacks . | . . . . . Terminals . | . . . . . Fabricators . | . . . . . Repair Stations . | . . . . . Recycling Units . | . . . . . Scanalyzers . | . . . . . Garrison Access . | . . . . . Data Cores Recovered . | . . . . . Used . | . . . . . Hacking Detections 1 | . 1 . . . Full Trace Events . | . . . . . Feedback Events . | . . . . . Feedback Blocked . | . . . . . Robot Schematics Acquired . | . . . . . Robots Built . | . . . . . Authchips . | . . . . . Time . | . . . . . Total Robot Build Rating . | . . . . . Part Schematics Acquired . | . . . . . Parts Built . | . . . . . Authchips . | . . . . . Time . | . . . . . Total Part Build Rating . | . . . . . Parts Repaired . | . . . . . Time . | . . . . . Parts Recycled . | . . . . . Recycled Matter . | . . . . . Retrieved Matter . | . . . . . Retrieved Components . | . . . . . Parts Scanalyzed . | . . . . . Part Schematics Acquired . | . . . . . Parts Damaged . | . . . . . Bothacking | -11 -10 -10 -9 -6 ------------ Run | Yrd Mat Sub Scr Fac Used RIF Installer . | . . . . . Robots Hacked . | . . . . . Non-combat . | . . . . . Combat . | . . . . . Robot Hacks Applied . | . . . . . Relay Couplers Released . | . . . . . Fabnet Peak Effective % . | . . . . . Robots Rewired . | . . . . . Allies Hacked . | . . . . . Hacks Repelled . | . . . . . Allies | -11 -10 -10 -9 -6 -------- Run | Yrd Mat Sub Scr Fac Total Allies . | . . . . . Largest Group . | . . . . . Highest-Rated Group . | . . . . . Highest-Rated Ally . | . . . . . Total Orders . | . . . . . Ally Attacks . | . . . . . Total Damage . | . . . . . Kills . | . . . . . Allies Corrupted . | . . . . . Allies Melted . | . . . . . Intel | -11 -10 -10 -9 -6 ------- Run | Yrd Mat Sub Scr Fac Active Infowar (turns) 1780 | 62 218 838 662 . Optics 838 | . . 838 . . Seismic 942 | 62 218 . 662 . Robot Analysis Total . | . . . . . Derelict Logs Recovered 2 | . . 2 . . Drone Launches . | . . . . . Drone Recoveries . | . . . . . Exploration | -11 -10 -10 -9 -6 ------------- Run | Yrd Mat Sub Scr Fac Turns Passed 4408 | 239 252 1727 1755 435 Spaces Moved 2498 | 234 137 856 1033 238 Core 698 | 28 2 291 325 52 Treads 87 | . . . . 87 Legs 375 | . 104 271 . . Wheels 1316 | 206 20 294 708 88 Hover 22 | . 11 . . 11 Flight . | . . . . . Fastest Speed 50 | 50 80 110 100 50 Average Speed 150 | 76 120 179 150 138 Slowest Speed 300 | 80 200 300 300 300 Overloaded Moves . | . . . . . Propulsion Burnouts . | . . . . . Robots Hopped . | . . . . . Potential Cave-ins 1 | . . 1 . . Cave-ins Triggered . | . . . . . Exploration Rate (%) 25 | 9 22 37 57 4 Regions Visited 4 Branch Regions 2 Pre-discovered Areas . | . . . . . Known Exits Taken . | . . . . . Unknown Exits Taken 4 | 1 1 1 1 . Scrap Searched 9 | . . 3 6 . Spaces Dug . | . . . . . Terrain Destroyed 6 | . 6 . . . Melee . | . . . . . Projectile . | . . . . . AOE 6 | . 6 . . . Terrain Rammed . | . . . . . Walls Destroyed . | . . . . . Machines Disabled . | . . . . . Actions | -11 -10 -10 -9 -6 --------- Run | Yrd Mat Sub Scr Fac Total 3007 | 285 184 990 1235 313 Wait 255 | 11 4 54 174 12 Move 2494 | 233 136 855 1032 238 Hop . | . . . . . Pick Up 27 | 13 1 7 6 . Fast Attach 30 | 5 2 8 3 12 Attach 11 | 5 1 4 1 . Detach 3 | 1 . . 2 . Swap 32 | 2 13 7 10 . Drop 31 | 8 5 12 6 . Fire 81 | 6 18 43 . 14 Melee . | . . . . . Ram 37 | 1 . . . 36 Kick 4 | . 4 . . . Crush 1 | . . . . 1 Escape Stasis . | . . . . . Rewire 1 | . . . 1 . Trap . | . . . . . Miscellaneous . | . . . . . Route ------- -11/Scrapyard -10/Materials -10/Subcaves -9/Scraptown -6/Factory History --------- Turn | Location | Event 2 | -11/Scrapyard | Met Revision 17 113 | -11/Scrapyard | Discovered new exit (range 8) 240 | -11/Scrapyard | Entered Materials 481 | -10/Materials | Discovered new exit (range 9) 492 | -10/Materials | Entered Subcaves 493 | -10/Subcaves | Approached by a straggling Scientist 504 | -10/Subcaves | Learned Materials security intel 594 | -10/Subcaves | Build established: Mutant 633 | -10/Subcaves | Ambushed by swarm of Subdwellers 635 | -10/Subcaves | Scientist uncovered a shortcut to Scraptown 663 | -10/Subcaves | Ambushed by Subdweller buried in earth 794 | -10/Subcaves | Learned Materials trap positions 883 | -10/Subcaves | Lost 3 parts (1p1u1w) 979 | -10/Subcaves | Disturbed a concealed Subdweller 979 | -10/Subcaves | A swath of the cavern ceiling suddenly collapsed 1005 | -10/Subcaves | Core integrity fell below 50% 1022 | -10/Subcaves | Lost 3 parts (2n1w) 1036 | -10/Subcaves | Core integrity fell below 20% 1425 | -10/Subcaves | Ambushed by angry Subdweller bent on revenge 1585 | -10/Subcaves | Build established: Scavenger-Mutant 2219 | -10/Subcaves | Entered Scraptown 2663 | -9/Scraptown | Build established: Mutant 2665 | -9/Scraptown | Visited UFD Registry 2745 | -9/Scraptown | Visited IN-MT5's Study 3492 | -9/Scraptown | Visited The Evicted 3545 | -9/Scraptown | Visited Bundlers 3713 | -9/Scraptown | Visited Symbiants 3836 | -9/Scraptown | Discovered new exit (range 5) 3974 | -9/Scraptown | Entered Factory 3974 | -6/Factory | Evolved 8 slots: Power x3, Propulsion x2, Utility x1, Weapon x2 4206 | -6/Factory | Lost 3 parts (1n1u1w) 4289 | -6/Factory | Core integrity fell below 50% 4313 | -6/Factory | Core integrity fell below 20% 4314 | -6/Factory | System corruption reached 10% 4326 | -6/Factory | Lost 5 parts (3p1n1u) 4409 | -6/Factory | Destroyed by Y-54 Guardian via exploding Fusion Modulator Last Messages --------------- 04350_ Acquired 1 matter. 04354_ Acquired Mic. Nuclear Core. 04357_ System corrupted: FCS attempts to trigger Flak Gun. 04357_ System corrupted: Flak Gun misfires. 04371_ Acquired Gravmag System. 04373_ System corrupted: Matter fused (-7). 04373_ Acquired Imp. Heat Sink. 04391_ System corrupted: IFF burst signal emitted. 04392_ System corrupted: Flak Gun jammed. 04395_ Destroyed Imp. Hover Unit. 04398_ W-25 Informer destroyed. 04398_ Switching to secondary target: Y-54 Guardian. 04399_ Shock Rifle destroyed. 04409_ Fusion Modulator explodes. 04409_ Mic. Nuclear Core destroyed. 04409_ Imp. Heat Sink destroyed. [Achievement: First Step to Greatness] Map ----- +----------------------------------------------------+ | ?????????????????????????????????????????????????? | | ?????????????????????????????????????????????????? | | ?????????????????????????????????????????????????? | | ?????????????????????????????????????????????????? | | ?????????????????????????????????????????????????? | | ?????????????????????????????????????????????????? | | ?????????????????????????????????????????????????? | | ?????????????????????????????????????????????????? | | ?????????????????????????????????????????????????? | | ?????????????????????????????????????????????????? | | ?????????????????????????????????????????????????? | | ?????????????????????????????????????????????????? | | ?????????????????????????????????????????????????? | | ?????????????????????????????????????????????????? | | ?????????????????????????????????????????????????? | | ?????????????????????????????????????????????????? | | ?????????????????????????????????????????????????? | | ???????????????????????######?####???????????????? | | ???????????????????#??? #???????????????? | | ???????????????????# """ """ #????????????????? | | ???????????????????# """ """ #????????????????? | | ???????????????????# """ """ !#????????????????? | | ???????????????????# #????????????????? | | ???????????????????# """ #????????????????? | | ######?????????????# """ #????????????????? | | #?????????????# """@ #????????????????? | | #?????????????# #????????????????? | | #?????????????# =Y % #????????????????? | | #??##########?# = !! ! #????????????????? | | #??? #?# #????????????????? | | #???"""" #########+########??????????????? | | "" #?? """" # ???????? | | "" #?? """" #%% ???????? | | "" #?# """" #% "" ???????? | | "" #?# """" + " ????????? | | #?# """" #%%"F ????????? | | #?# #%%" """" """" """" #?????????? | | ##################%% """" """" """" ?#?????????? | | """" """" """?????????????? | | ????????????? | | ????????????? | | #####??????????????? | | #??????????????????? | | ###+####### ######+######## #??????????????????? | | # # # #? #??????????????????? | | # # # """ """" #? ???????????????????? | | # # # """ ""R"" #?????????????????????? | | # # # """ "" "" #?????????????????????? | | # """ """ # # #?????????????????????? | | # """ """ # # """ """ #?????????????????????? | +----------------------------------------------------+ Best States ------------- Heat Dissipation 51 Coolant Potential 50 Energy Generation 51 Energy Capacity 730 Matter Stores 383 Matter Capacity 550 Sight Range 21 Terrain Scan Density 10 Power Amplification 20 Armor Coverage 800 Resistance: TH 10 Evasion (%) 55 Targeting Accuracy 6 Target Analysis 5 Recoil Reduction 1 Particle Charging 20 Item Schematics ----------------- None Robot Schematics ------------------ None Fabricated ------------ Nothing Repaired ---------- Nothing Alien Tech Used ----------------- None Achievements -------------- First Step to Greatness Fist Fight Made in Tau Ceti IV Storm Trooper System Compromised Challenges ------------ None Game ------ Seed DispersalArcsightSuite Manual? 0 Play Time 01:52:40 Cumulative 1.8 hours Start 2025.09.13 @ 22:39:32 End 2025.09.14 @ 10:40:20 Sessions 5 Manual Loads 0 Difficulty Rogue Special Mode None Game No. 1 Rogue 1 Adventurer 0 Explorer 0 Win Type - Total 0 Types 0/0/0/0/0/0/0/0/0/0 Lore% 1 Gallery% 4 Achievement% 2 Wizard Run 0 Options --------- Layout 1 ASCII 0 Keyboard 1 Movement Numpad Keybinds 0 Fullscreen 1 Font 24/Smallcaps Map View 50x35 Zoom Use 0% Tactical HUD 1 Map Filters NONE Filters NONE Steam 1 RUN: b6211e91-a12a-45ef-adf9-9754e6530f30